fUST/lending_fUST_20250224
["ID","MTS","AMOUNT","RATE_DAILY","PERIOD"]
[354319361,1740408655214,-560.56,0.00015342,2]
[354319362,1740408655223,-586.94,0.00015342,2]
[354319363,1740408655232,-611.42,0.00015342,2]
[354319364,1740408655243,-7394.56,0.00015342,2]
[354319365,1740408655252,-847.28,0.00015342,2]
[354319366,1740408655261,-749.76,0.00015342,2]
[354319367,1740408655274,-2119.9,0.00015342,2]
[354319368,1740408655283,-507.82,0.00015342,2]
[354319369,1740408655292,-761.37,0.00015342,2]
[354319371,1740408655301,-553.15,0.00015342,2]
[354319372,1740408655311,-1495.95,0.00015342,2]
[354319374,1740408655320,-1753.22,0.00015342,2]
[354319375,1740408655329,-578.76,0.00015342,2]
[354319377,1740408655338,-151.0,0.00015342,2]
[354319379,1740408655347,-557.38,0.00015342,2]
[354319381,1740408655357,-4055.58,0.00015342,2]
[354319383,1740408655366,-7410.82,0.00015342,2]
[354319385,1740408655376,-769.43,0.00015342,2]
[354319387,1740408655386,-387.81186817,0.00015342,2]
[354319389,1740408655395,-1278.99,0.00015342,2]
[354319391,1740408655405,-1576.07,0.00015342,2]
[354319394,1740408655415,-2356.81,0.00015342,2]
[354319396,1740408655424,-16841.0,0.00015342,2]
[354319398,1740408655433,-606.35,0.00015342,2]
[354319400,1740408655444,-1403.62,0.00015342,2]
[354319402,1740408655454,-656.7,0.00015342,2]
[354319404,1740408655463,-500.0,0.00015342,2]
[354319406,1740408655473,-556.41,0.00015342,2]
[354319408,1740408655482,-1659.16,0.00015396,2]
[354319409,1740408655492,-500.0,0.00015396,2]
[354319411,1740408655503,-634.0,0.00015397,2]
[354319413,1740408655512,-500.0,0.00015397,2]
[354319415,1740408655525,-1001.21850685,0.00015421,2]
[354319417,1740408655535,-508.82,0.00015424,2]
[354319419,1740408655544,-647.81,0.00015424,2]
[354319421,1740408655554,-668.37,0.00015424,2]
[354319423,1740408655565,-1062.71,0.00015424,2]
[354319425,1740408655575,-500.1,0.00015424,2]
[354319427,1740408655585,-560.56,0.00015424,2]
[354319429,1740408655595,-586.94,0.00015424,2]
[354319432,1740408655604,-611.42,0.00015424,2]
[354319434,1740408655614,-7394.56,0.00015424,2]
[354319436,1740408655624,-847.28,0.00015424,2]
[354319438,1740408655634,-749.76,0.00015424,2]
[354319440,1740408655644,-2119.9,0.00015424,2]
[354319442,1740408655653,-507.82,0.00015424,2]
[354319444,1740408655662,-761.37,0.00015424,2]
[354319446,1740408655671,-553.15,0.00015424,2]
[354319448,1740408655681,-1495.95,0.00015424,2]
[354319450,1740408655691,-1753.22,0.00015424,2]
[354319452,1740408655700,-578.76,0.00015424,2]
[354319454,1740408655709,-557.38,0.00015424,2]
[354319456,1740408655718,-4055.58,0.00015424,2]
[354319458,1740408655727,-7410.82,0.00015424,2]
[354319460,1740408655737,-769.43,0.00015424,2]
[354319462,1740408655747,-1278.99,0.00015424,2]
[354319464,1740408655757,-1576.07,0.00015424,2]
[354319466,1740408655766,-2356.81,0.00015424,2]
[354319468,1740408655779,-16841.0,0.00015424,2]
[354319470,1740408655788,-606.35,0.00015424,2]
[354319472,1740408655798,-1403.62,0.00015424,2]
[354319474,1740408655807,-656.7,0.00015424,2]
[354319476,1740408655817,-171.61109487,0.00015424,2]
[354319477,1740408655826,-556.41,0.00015424,2]
[354319480,1740408655836,-854.11588088,0.00015438,2]
[354319482,1740408655848,-1659.16,0.00015479,2]
[354319484,1740408655858,-500.0,0.00015479,2]
[354319486,1740408655867,-508.82,0.00015506,2]
[354319487,1740408655877,-647.81,0.00015506,2]
[354319490,1740408655887,-668.37,0.00015506,2]
[354319492,1740408655897,-1062.71,0.00015506,2]
[354319493,1740408655907,-500.1,0.00015506,2]
[354319496,1740408655917,-560.56,0.00015506,2]
[354319498,1740408655927,-586.94,0.00015506,2]
[354319500,1740408655937,-186.7373,0.00015506,2]
[354319501,1740408655946,-611.42,0.00015506,2]
[354319504,1740408655955,-151.0,0.00015506,2]
[354319506,1740408655965,-7394.56,0.00015506,2]
[354319508,1740408655974,-847.28,0.00015506,2]
[354319510,1740408655985,-749.76,0.00015506,2]
[354319511,1740408655994,-2119.9,0.00015506,2]
[354319513,1740408656003,-507.82,0.00015506,2]
[354319515,1740408656012,-761.37,0.00015506,2]
[354319517,1740408656022,-553.15,0.00015506,2]
[354319519,1740408656032,-1495.95,0.00015506,2]
[354319521,1740408656041,-1753.22,0.00015506,2]
[354319523,1740408656050,-578.76,0.00015506,2]
[354319525,1740408656060,-557.38,0.00015506,2]
[354319527,1740408656070,-4055.58,0.00015506,2]
[354319529,1740408656079,-7410.82,0.00015506,2]
[354319531,1740408656089,-769.43,0.00015506,2]
[354319533,1740408656098,-1278.99,0.00015506,2]
[354319535,1740408656108,-1576.07,0.00015506,2]
[354319537,1740408656120,-2356.81,0.00015506,2]
[354319539,1740408656130,-3299.89742103,0.00015506,2]
[354319559,1740408656320,-13541.10257897,0.00015506,2]
[354319561,1740408656330,-176.181355,0.00015506,2]
[354319563,1740408656339,-176.181355,0.00015506,2]
[354319565,1740408656349,-606.35,0.00015506,2]
[354319567,1740408656359,-1403.62,0.00015506,2]
[354319569,1740408656370,-656.7,0.00015506,2]
[354319571,1740408656380,-556.41,0.00015506,2]
[354319573,1740408656390,-500.0,0.00015522,2]
[354319575,1740408656400,-153.0,0.00015534,2]
[354319577,1740408656410,-154.8331553,0.00015534,2]
[354319592,1740408656521,-253.6799471,0.00015534,2]
[354319594,1740408656546,-306.0,0.00015534,2]
[354319596,1740408656556,-306.0,0.00015534,2]
[354319598,1740408656566,-557.4308118,0.00015534,2]
[354319600,1740408656576,-557.4308118,0.00015534,2]
[354319602,1740408656585,-557.4308118,0.00015534,2]
[354319604,1740408656596,-557.4308118,0.00015534,2]
[354319606,1740408656607,-557.4308118,0.00015534,2]
[354319608,1740408656617,-557.4308118,0.00015534,2]
[354319610,1740408656626,-557.4308118,0.00015534,2]
[354319612,1740408656637,-557.4308118,0.00015534,2]
[354319614,1740408656647,-557.4308118,0.00015534,2]
[354319616,1740408656657,-557.4308118,0.00015534,2]
[354319618,1740408656666,-557.4308118,0.00015534,2]
[354319621,1740408656677,-322.1418882,0.00015534,2]
[354319623,1740408656686,-854.11588088,0.00015538,2]
[354319625,1740408656696,-1659.16,0.00015561,2]
[354319627,1740408656706,-500.0,0.00015561,2]
[354319628,1740408656716,-508.90517632,0.00015589,2]
[354319631,1740408656726,-647.89448802,0.00015589,2]
[354319633,1740408656735,-668.56154115,0.00015589,2]
[354319635,1740408656746,-1062.80291233,0.00015589,2]
[354319636,1740408656755,-500.19659185,0.00015589,2]
[354319638,1740408656766,-560.79604956,0.00015589,2]
[354319641,1740408656778,-586.97542563,0.00015589,2]
[354319642,1740408656788,-611.46,0.00015589,2]
[354319644,1740408656798,-7394.63778019,0.00015589,2]
[354319647,1740408656808,-847.48588126,0.00015589,2]
[354319649,1740408656819,-749.98457174,0.00015589,2]
[354319651,1740408656828,-620.3935327,0.00015589,2]
[354319653,1740408656840,-1499.68675205,0.00015589,2]
[354319655,1740408656849,-507.96017624,0.00015589,2]
[354319657,1740408656859,-761.590556,0.00015589,2]
[354319659,1740408656868,-553.15333769,0.00015589,2]
[354319661,1740408656878,-1496.18938167,0.00015589,2]
[354319663,1740408656888,-1753.23402411,0.00015589,2]
[354319665,1740408656898,-578.92461322,0.00015589,2]
[354319667,1740408656908,-557.48,0.00015589,2]
[354319669,1740408656918,-4055.76403044,0.00015589,2]
[354319671,1740408656927,-7410.9833671,0.00015589,2]
[354319673,1740408656937,-769.52511656,0.00015589,2]
[354319675,1740408656948,-1279.04082503,0.00015589,2]
[354319677,1740408656957,-1576.09079161,0.00015589,2]
[354319679,1740408656967,-2357.03661196,0.00015589,2]
[354319681,1740408656977,-16841.21068692,0.00015589,2]
[354319683,1740408656987,-606.38,0.00015589,2]
[354319685,1740408656996,-1403.63005985,0.00015589,2]
[354319687,1740408657007,-656.84,0.00015589,2]
[354319689,1740408657016,-556.51303409,0.00015589,2]
[354319691,1740408657027,-854.11588088,0.00015638,2]
[354319693,1740408657038,-1659.16,0.00015643,2]
[354319695,1740408657048,-510.84,0.00015643,2]
[354319697,1740408657058,-634.0,0.00015671,2]
[354319699,1740408657067,-500.0,0.00015671,2]
[354319701,1740408657077,-332.0,0.0001568,2]
[354319703,1740408657086,-1500.0,0.00015722,2]
[354319705,1740408657097,-1284.34603406,0.00015722,2]
[354319707,1740408657107,-1500.0,0.00015722,2]
[354319709,1740408657121,-1659.16,0.00015725,2]
[354319711,1740408657131,-854.11588088,0.00015738,2]
[354319713,1740408657141,-246.219909,0.00015775,2]
[354319715,1740408657151,-1659.16,0.00015807,2]
[354319718,1740408657163,-854.11588088,0.00015838,2]
[354319720,1740408657173,-1659.27745115,0.0001589,2]
[354319722,1740408657183,-854.11588088,0.00015938,2]
[354319724,1740408657193,-634.0,0.00015945,2]
[354319726,1740408657203,-500.0,0.00015945,2]
[354319728,1740408657213,-10824.13979975,0.00016,14]
[354319730,1740408657226,-8569.47834581,0.00016,14]
[354319732,1740408657238,-1427.23342519,0.00016,14]
[354319735,1740408657255,-151.0,0.00015506,2]
[354319737,1740408657265,-1588.84400001,0.00016,14]
[354319740,1740408657291,-15116.376838,0.00016,14]
[354323075,1740408972142,1069.27,9.77e-05,2]
[354323079,1740409293716,221.597918,9.041e-05,2]
[354323083,1740409699684,-187.174566,0.00012952,2]
[354323140,1740409832645,-2438.4,0.00013427,2]
[354323142,1740409832657,-17163.51606613,0.00013427,2]
[354323144,1740409832666,-300.0,0.00013436,2]
[354323147,1740409832676,-247.63304736,0.00013519,2]
[354323148,1740409832686,-2000.0,0.00013598,2]
[354323149,1740409832695,-500.0,0.00013698,2]
[354323150,1740409832704,-291.03854298,0.00013698,2]
[354323151,1740409832717,-453.38631141,0.00013698,2]
[354323152,1740409832728,-502.28291121,0.00013698,2]
[354323153,1740409832738,-500.0,0.00013698,2]
[354323154,1740409832748,-379.91626006,0.00013698,2]
[354323155,1740409832759,-500.0,0.00013698,2]
[354323157,1740409832769,-500.0,0.00013698,2]
[354323158,1740409832779,-500.0,0.00013698,2]
[354323160,1740409832790,-1266.37,0.00013698,2]
[354323162,1740409832800,-526.56,0.00013698,2]
[354323164,1740409832811,-500.0,0.00013698,2]
[354323165,1740409832822,-500.0,0.00013698,2]
[354323166,1740409832832,-500.0,0.00013698,2]
[354323168,1740409832843,-500.0,0.00013698,2]
[354323170,1740409832853,-500.0,0.00013698,2]
[354323172,1740409832864,-536.63,0.00013698,2]
[354323174,1740409832873,-500.0,0.00013698,2]
[354323176,1740409832883,-500.0,0.00013698,2]
[354323179,1740409832892,-182.010267,0.00013699,2]
[354323183,1740409832901,-500.0,0.0001378,2]
[354323187,1740409832911,-500.0,0.0001378,2]
[354323188,1740409832920,-500.0,0.0001378,2]
[354323190,1740409832929,-500.0,0.0001378,2]
[354323192,1740409832939,-1266.37,0.0001378,2]
[354323194,1740409832948,-526.56,0.0001378,2]
[354323196,1740409832957,-500.0,0.0001378,2]
[354323198,1740409832969,-500.0,0.0001378,2]
[354323200,1740409832979,-500.0,0.0001378,2]
[354323202,1740409832988,-500.0,0.0001378,2]
[354323204,1740409832997,-500.0,0.0001378,2]
[354323207,1740409833007,-536.63,0.0001378,2]
[354323208,1740409833016,-500.0,0.0001378,2]
[354323211,1740409833026,-500.0,0.0001378,2]
[354323212,1740409833036,-557.95590578,0.00013863,2]
[354323215,1740409833047,-500.0,0.00013863,2]
[354323216,1740409833057,-500.0,0.00013863,2]
[354323218,1740409833067,-500.0,0.00013863,2]
[354323221,1740409833077,-1266.37,0.00013863,2]
[354323222,1740409833086,-526.56,0.00013863,2]
[354323224,1740409833096,-204.99502506,0.00013863,2]
[354323226,1740409833106,-500.0,0.00013863,2]
[354323228,1740409833116,-500.0,0.00013863,2]
[354323229,1740409833126,-500.0,0.00013863,2]
[354323230,1740409833136,-536.63,0.00013863,2]
[354323232,1740409833146,-500.0,0.00013863,2]
[354323234,1740409833156,-500.0,0.00013863,2]
[354323236,1740409833166,-2520.34584121,0.00013937,2]
[354323238,1740409833176,-500.0,0.00013945,2]
[354323240,1740409833185,-500.0,0.00013945,2]
[354323242,1740409833195,-500.0,0.00013945,2]
[354323244,1740409833206,-1266.37,0.00013945,2]
[354323246,1740409833217,-526.56,0.00013945,2]
[354323248,1740409833227,-500.0,0.00013945,2]
[354323250,1740409833237,-500.0,0.00013945,2]
[354323252,1740409833246,-372.3992683,0.00013945,2]
[354323254,1740409833256,-536.63,0.00013945,2]
[354323256,1740409833265,-500.0,0.00013945,2]
[354323258,1740409833274,-500.0,0.00013945,2]
[354323260,1740409833284,-500.0,0.00013999,2]
[354323262,1740409833294,-500.0,0.00013999,2]
[354323264,1740409833303,-354.066,0.00014,2]
[354323265,1740409833313,-175.047,0.00014,2]
[354323267,1740409833323,-500.0,0.00014027,2]
[354323269,1740409833333,-500.0,0.00014027,2]
[354323271,1740409833343,-500.0,0.00014027,2]
[354323272,1740409833352,-1266.37,0.00014027,2]
[354323273,1740409833362,-526.56,0.00014027,2]
[354323274,1740409833371,-500.0,0.00014027,2]
[354323275,1740409833380,-500.0,0.00014027,2]
[354323276,1740409833390,-536.63,0.00014027,2]
[354323277,1740409833400,-500.0,0.00014027,2]
[354323278,1740409833409,-500.0,0.00014027,2]
[354323279,1740409833420,-500.0,0.00014081,2]
[354323280,1740409833430,-200.0,0.00014081,2]
[354323281,1740409833450,-500.0,0.00014109,2]
[354323282,1740409833466,-500.0,0.00014109,2]
[354323283,1740409833477,-500.0,0.00014109,2]
[354323284,1740409833488,-1266.37,0.00014109,2]
[354323285,1740409833498,-526.56,0.00014109,2]
[354323286,1740409833508,-500.0,0.00014109,2]
[354323287,1740409833518,-500.0,0.00014109,2]
[354323288,1740409833528,-536.63,0.00014109,2]
[354323289,1740409833539,-500.0,0.00014109,2]
[354323290,1740409833550,-500.0,0.00014109,2]
[354323291,1740409833560,-500.0,0.00014164,2]
[354323292,1740409833571,-500.0,0.00014191,2]
[354323293,1740409833582,-500.0,0.00014191,2]
[354323294,1740409833592,-500.0,0.00014191,2]
[354323295,1740409833602,-1266.37,0.00014191,2]
[354323296,1740409833612,-526.56,0.00014191,2]
[354323297,1740409833623,-500.0,0.00014191,2]
[354323298,1740409833633,-500.0,0.00014191,2]
[354323299,1740409833643,-536.63,0.00014191,2]
[354323300,1740409833653,-500.0,0.00014191,2]
[354323301,1740409833663,-500.0,0.00014191,2]
[354323302,1740409833675,-498.0,0.00014246,2]
[354323303,1740409833687,-500.0,0.00014273,2]
[354323304,1740409833697,-500.0,0.00014273,2]
[354323305,1740409833707,-500.0,0.00014273,2]
[354323306,1740409833719,-1266.37,0.00014273,2]
[354323307,1740409833729,-526.56,0.00014273,2]
[354323308,1740409833740,-500.0,0.00014273,2]
[354323309,1740409833750,-500.0,0.00014273,2]
[354323310,1740409833762,-536.63,0.00014273,2]
[354323311,1740409833772,-500.0,0.00014273,2]
[354323312,1740409833783,-500.0,0.00014273,2]
[354323313,1740409833793,-500.0,0.00014318,2]
[354323314,1740409833803,-394.02661096,0.00014349,2]
[354323315,1740409833813,-500.0,0.00014356,2]
[354323316,1740409833823,-500.0,0.00014356,2]
[354323317,1740409833833,-500.0,0.00014356,2]
[354323318,1740409833843,-1266.37,0.00014356,2]
[354323319,1740409833853,-526.56,0.00014356,2]
[354323320,1740409833863,-214.55042416,0.00014356,2]
[354323321,1740409833873,-500.0,0.00014356,2]
[354323322,1740409833884,-536.63,0.00014356,2]
[354323323,1740409833894,-500.0,0.00014356,2]
[354323324,1740409833904,-500.0,0.00014356,2]
[354323325,1740409833914,-500.0,0.00014371,2]
[354323326,1740409834089,-500.0,0.00014376,2]
[354323327,1740409834115,-500.0,0.000144,2]
[354323328,1740409834125,-1327.18,0.000144,2]
[354323329,1740409834134,-500.0,0.00014438,2]
[354323330,1740409834144,-500.0,0.00014438,2]
[354323331,1740409834153,-500.0,0.00014438,2]
[354323332,1740409834163,-1266.37,0.00014438,2]
[354323333,1740409834173,-526.56,0.00014438,2]
[354323334,1740409834183,-500.0,0.00014438,2]
[354323335,1740409834194,-536.63,0.00014438,2]
[354323336,1740409834204,-500.0,0.00014438,2]
[354323337,1740409834217,-500.0,0.00014438,2]
[354323338,1740409834227,-500.0,0.0001452,2]
[354323339,1740409834239,-567.54080053,0.0001452,2]
[354323340,1740409834249,-500.0,0.0001452,2]
[354323341,1740409834259,-1266.37,0.0001452,2]
[354323342,1740409834269,-526.56,0.0001452,2]
[354323343,1740409834280,-500.0,0.0001452,2]
[354323344,1740409834290,-536.63,0.0001452,2]
[354323345,1740409834300,-500.0,0.0001452,2]
[354323346,1740409834310,-500.0,0.0001452,2]
[354323347,1740409834320,-153.68889942,0.00014602,2]
[354323348,1740409834330,-1266.37,0.00014602,2]
[354323349,1740409834340,-526.56,0.00014602,2]
[354323350,1740409834350,-500.0,0.00014602,2]
[354323351,1740409834361,-536.63,0.00014602,2]
[354323352,1740409834371,-545.23510207,0.00014602,2]
[354323353,1740409834380,-439.0,0.0001463,2]
[354323354,1740409834390,-1266.37,0.00014684,2]
[354323355,1740409834400,-526.56,0.00014684,2]
[354323356,1740409834410,-500.0,0.00014684,2]
[354323357,1740409834421,-536.63,0.00014684,2]
[354323358,1740409834432,-1266.37,0.00014767,2]
[354323359,1740409834442,-526.56,0.00014767,2]
[354323360,1740409834457,-536.63,0.00014767,2]
[354323361,1740409834472,-465.05758151,0.00014774,2]
[354323362,1740409834482,-1519.0265654,0.00014828,2]
[354323363,1740409834494,-1266.37,0.00014849,2]
[354323364,1740409834504,-526.56,0.00014849,2]
[354323365,1740409834515,-536.63,0.00014849,2]
[354323366,1740409834525,-1000.0,0.00014866,2]
[354323367,1740409834535,-5118.02844319,0.00014898,2]
[354323368,1740409834546,-37529.83320397,0.000149,2]
[354323369,1740409834561,-833.82698,0.000149,2]
[354323370,1740409834574,-3845.2,0.000149,2]
[354323371,1740409834590,-541.31,0.00014602,2]
[354323372,1740409834603,-406.52,0.000149,2]
[354323373,1740409834624,-487.00510354,0.000149,2]
[354323374,1740409834636,-7140.84578828,0.000149,2]
[354323375,1740409834648,-15292.14682321,0.000149,2]
[354323376,1740409834658,-1000.0,0.00014919,2]
[354323377,1740409834668,-1266.37,0.00014931,2]
[354323378,1740409834678,-526.56,0.00014931,2]
[354323379,1740409834688,-536.63,0.00014931,2]
[354323380,1740409834698,-1000.0,0.00014948,2]
[354323381,1740409834708,-713.30518579,0.00015,2]
[354323406,1740409838247,-286.69481421,0.00015,2]
[354323408,1740409838256,-1266.37,0.00015013,2]
[354323410,1740409838265,-526.56,0.00015013,2]
[354323412,1740409838275,-536.63,0.00015013,2]
[354323414,1740409838284,-1266.37,0.00015095,2]
[354323415,1740409838293,-526.56,0.00015095,2]
[354323417,1740409838303,-536.63,0.00015095,2]
[354323419,1740409838313,-355.293833,0.00015123,2]
[354323421,1740409838322,-355.293833,0.00015123,2]
[354323422,1740409838332,-1519.02656537,0.00015144,2]
[354323425,1740409838342,-1266.37,0.00015178,2]
[354323426,1740409838351,-526.56,0.00015178,2]
[354323428,1740409838360,-536.63,0.00015178,2]
[354323430,1740409838370,-2200.0,0.00015223,2]
[354323432,1740409838380,-3000.0,0.00015242,2]
[354323434,1740409838390,-1266.37,0.0001526,2]
[354323436,1740409838400,-526.56,0.0001526,2]
[354323438,1740409838410,-536.63,0.0001526,2]
[354323440,1740409838419,-1055.35379087,0.00015332,2]
[354323442,1740409838431,-8451.7648939,0.00015332,2]
[354323444,1740409838442,-1023.98072748,0.00015332,2]
[354323446,1740409838459,-8282.03847094,0.00015332,2]
[354323630,1740409840487,-7704.6607648,0.00015332,2]
[354323635,1740409840526,-362.1910048,0.00015332,2]
[354323637,1740409840539,-5123.32607216,0.00015332,2]
[354323642,1740409840574,-757.645534,0.00015332,2]
[354323644,1740409840585,-7147.79269482,0.00015332,2]
[354323647,1740409840598,-3452.44378548,0.00015332,2]
[354323649,1740409840610,-22174.18015975,0.00015332,2]
[354323651,1740409840620,-1266.37,0.00015342,2]
[354323653,1740409840631,-526.56,0.00015342,2]
[354323655,1740409840641,-536.63,0.00015342,2]
[354323657,1740409840650,-1266.37,0.00015424,2]
[354323659,1740409840660,-526.56,0.00015424,2]
[354323661,1740409840669,-536.63,0.00015424,2]
[354323663,1740409840679,-1519.02656537,0.00015459,2]
[354323665,1740409840688,-1020.85139309,0.00015498,2]
[354323667,1740409840698,-1266.37,0.00015506,2]
[354323669,1740409840707,-526.56,0.00015506,2]
[354323671,1740409840716,-536.63,0.00015506,2]
[354323673,1740409840728,-465.00287908,0.00015513,2]
[354323675,1740409840738,-309.592814,0.00015534,2]
[354323677,1740409840748,-306.0,0.00015534,2]
[354323679,1740409840757,-431.450657,0.00015534,2]
[354323681,1740409840767,-153.0,0.00015534,2]
[354323683,1740409840777,-557.4308118,0.00015534,2]
[354323685,1740409840787,-153.0,0.00015534,2]
[354323687,1740409840797,-557.0208381,0.00015534,2]
[354323689,1740409840806,-1266.43716021,0.00015589,2]
[354323691,1740409840816,-526.68,0.00015589,2]
[354323693,1740409840825,-536.75,0.00015589,2]
[354323695,1740409840835,-13278.19900895,0.00015646,2]
[354323697,1740409840845,-611.54969177,0.00015744,2]
[354323699,1740409840854,-1519.02656537,0.00015775,2]
[354323701,1740409840863,-221.597918,0.00015775,2]
[354323703,1740409840872,-1001.59174995,0.00015867,2]
[354323705,1740409840882,-1540.03147791,0.0001592,2]
[354323707,1740409840891,-1284.15788671,0.00015944,2]
[354323709,1740409840901,-1276.46200533,0.0001595,2]
[354323711,1740409840910,-500.0,0.00015989,2]
[354323713,1740409840919,-500.0,0.00015989,2]
[354323715,1740409840928,-455.74757497,0.00015989,2]
[354323717,1740409840938,-500.0,0.00015989,2]
[354323719,1740409840947,-500.0,0.00015989,2]
[354323721,1740409840957,-500.0,0.00015989,2]
[354323723,1740409840966,-500.0,0.00015989,2]
[354323725,1740409840978,-500.0,0.00015989,2]
[354323727,1740409840987,-500.0,0.00015989,2]
[354323729,1740409840997,-500.0,0.00015989,2]
[354323731,1740409841007,-500.0,0.00015989,2]
[354323733,1740409841016,-29326.53285464,0.0001599,2]
[354324074,1740409844533,-134.81508755,0.00015944,2]
[354324076,1740409844547,-25.5309084,0.00015944,2]
[354324078,1740409844557,-238.4944208,0.0001599,2]
[354324080,1740409844569,-8121.59774018,0.0001599,2]
[354324083,1740409844581,-914.51597502,0.0001599,2]
[354324085,1740409844593,-944.5,0.0001599,2]
[354324087,1740409844605,-1470.7192581,0.0001599,2]
[354324097,1740409844691,-24519.01765026,0.0001599,2]
[354324099,1740409844701,-46415.23234975,0.00016,14]
[354324101,1740409844713,-484132.2557609,0.00016,14]
[354324104,1740409844730,-12063.84270121,0.00016,14]
[354324239,1740409846236,-534.8177297,0.00016,14]
[354324254,1740409846377,-4572.58030684,0.00016,14]
[354324256,1740409846389,-69239.99978107,0.00016,14]
[354324258,1740409846400,-30212.49998,0.00016,14]
[354324260,1740409846411,-18931.84777415,0.00016,14]
[354324607,1740410435158,445.1830682,0.00012783,2]
[354324608,1740410560662,199.438126,9.041e-05,2]
[354324638,1740410919478,118.2042398,0.0001,2]
[354324664,1740410938628,2939.57,0.00019,120]
[354324668,1740410956185,1469.79,0.00019,120]
[354324677,1740410975676,1469.0,0.00019,120]
[354324704,1740411032643,-371.7957602,0.0001,2]
[354324705,1740411032652,-62.0634302,0.00012999,2]
[354324706,1740411032664,-237.9365698,0.00012999,2]
[354324707,1740411032673,-4622.59320023,0.00013,2]
[354324708,1740411032684,-963.85,0.00013,2]
[354324709,1740411032695,-5960.55197335,0.00013,2]
[354324711,1740411032724,-1863.82584949,0.00013,2]
[354324712,1740411032734,-426.13,0.00013618,4]
[354324713,1740411032743,-500.0,0.00013698,2]
[354324714,1740411032753,-500.4240586,0.00013698,2]
[354324715,1740411032762,-500.0,0.00013698,2]
[354324716,1740411032772,-212.17307311,0.00013698,2]
[354324717,1740411032781,-500.0,0.00013698,2]
[354324718,1740411032791,-500.0,0.00013698,2]
[354324719,1740411032801,-500.0,0.00013698,2]
[354324720,1740411032811,-2211.09,0.00013698,2]
[354324721,1740411032820,-500.0,0.00013698,2]
[354324722,1740411032829,-500.0,0.00013698,2]
[354324723,1740411032840,-877.18,0.00013698,2]
[354324724,1740411032850,-500.0,0.00013698,2]
[354324725,1740411032859,-500.0,0.00013698,2]
[354324726,1740411032868,-500.0,0.00013698,2]
[354324727,1740411032878,-500.0,0.00013698,2]
[354324728,1740411032888,-500.0,0.00013698,2]
[354324729,1740411032898,-500.0,0.00013698,2]
[354324731,1740411032907,-500.0,0.00013698,2]
[354324733,1740411032916,-500.0,0.00013698,2]
[354324735,1740411032928,-500.0,0.00013698,2]
[354324737,1740411032937,-343.3630431,0.00013698,2]
[354324739,1740411032946,-500.0,0.00013698,2]
[354324741,1740411032956,-374.93804142,0.00013698,2]
[354324743,1740411032965,-500.0,0.00013698,2]
[354324748,1740411033081,-212.2101712,0.00013698,2]
[354324749,1740411033117,-325.614417,0.00013699,2]
[354324750,1740411033128,-2211.09,0.0001378,2]
[354324751,1740411033138,-500.0,0.0001378,2]
[354324752,1740411033150,-877.18,0.0001378,2]
[354324753,1740411033160,-500.0,0.0001378,2]
[354324754,1740411033170,-500.0,0.0001378,2]
[354324755,1740411033180,-500.0,0.0001378,2]
[354324756,1740411033191,-500.0,0.0001378,2]
[354324757,1740411033202,-500.0,0.0001378,2]
[354324758,1740411033212,-317.79,0.0001378,2]
[354324759,1740411033222,-500.0,0.0001378,2]
[354324760,1740411033233,-500.0,0.0001378,2]